{"text_format":"3","workbook":"xlsx","n_sheets":2,"sheets":["Chi phí","Thể loại"],"not_rendered":{"defined_names":5},"read":"whole","date_system":"1900"}

{"sheet":"Chi phí","index":0,"n_rows":25,"n_cols":7,"rows_kept":25,"merged":[[0,1,0,5],[1,1,1,5]]}
[null,"NGÂN SÁCH CHI PHÍ",{"$nulls":4},{"$f":"TODAY()","v":{"v":44575,"d":"4457500.00%"}}]
[null,"Tên công ty"]
[null,"Chi phí","Thể loại","Ngân sách","Thực tế","Chênh lệch ($)","Chênh lệch (%)"]
[null,"Quảng cáo","Hoạt động",null,null,{"$f":"IFERROR(SUM(Chi_phí[[#This Row],[Ngân sách]]-Chi_phí[[#This Row],[Thực tế]]), \"\")","v":0},{"$f":"IFERROR(SUM(Chi #REF!/Chi #REF!),\"\")","v":""}]
[null,"Nợ","Hoạt động",null,null,{"$f":"IFERROR(SUM(Chi_phí[[#This Row],[Ngân sách]]-Chi_phí[[#This Row],[Thực tế]]), \"\")","v":0},{"$f":"IFERROR(SUM(Chi #REF!/Chi #REF!),\"\")","v":""}]
[null,"Phúc lợi","Hoạt động",null,null,{"$f":"IFERROR(SUM(Chi_phí[[#This Row],[Ngân sách]]-Chi_phí[[#This Row],[Thực tế]]), \"\")","v":0},{"$f":"IFERROR(SUM(Chi #REF!/Chi #REF!),\"\")","v":""}]
[null,"Nhu yếu phẩm","Hoạt động",null,null,{"$f":"IFERROR(SUM(Chi_phí[[#This Row],[Ngân sách]]-Chi_phí[[#This Row],[Thực tế]]), \"\")","v":0},{"$f":"IFERROR(SUM(Chi #REF!/Chi #REF!),\"\")","v":""}]
[null,"Bưu phí","Hoạt động",null,null,{"$f":"IFERROR(SUM(Chi_phí[[#This Row],[Ngân sách]]-Chi_phí[[#This Row],[Thực tế]]), \"\")","v":0},{"$f":"IFERROR(SUM(Chi #REF!/Chi #REF!),\"\")","v":""}]
[null,"Tiền thuê hoặc vay thế chấp","Hoạt động",null,null,{"$f":"IFERROR(SUM(Chi_phí[[#This Row],[Ngân sách]]-Chi_phí[[#This Row],[Thực tế]]), \"\")","v":0},{"$f":"IFERROR(SUM(Chi #REF!/Chi #REF!),\"\")","v":""}]
[null,"Chi phí bán hàng","Hoạt động",null,null,{"$f":"IFERROR(SUM(Chi_phí[[#This Row],[Ngân sách]]-Chi_phí[[#This Row],[Thực tế]]), \"\")","v":0},{"$f":"IFERROR(SUM(Chi #REF!/Chi #REF!),\"\")","v":""}]
[null,"Thuế","Hoạt động",null,null,{"$f":"IFERROR(SUM(Chi_phí[[#This Row],[Ngân sách]]-Chi_phí[[#This Row],[Thực tế]]), \"\")","v":0},{"$f":"IFERROR(SUM(Chi #REF!/Chi #REF!),\"\")","v":""}]
[null,"Tiện ích","Hoạt động",null,null,{"$f":"IFERROR(SUM(Chi_phí[[#This Row],[Ngân sách]]-Chi_phí[[#This Row],[Thực tế]]), \"\")","v":0},{"$f":"IFERROR(SUM(Chi #REF!/Chi #REF!),\"\")","v":""}]
[null,"Khác","Hoạt động",null,null,{"$f":"IFERROR(SUM(Chi_phí[[#This Row],[Ngân sách]]-Chi_phí[[#This Row],[Thực tế]]), \"\")","v":0},{"$f":"IFERROR(SUM(Chi #REF!/Chi #REF!),\"\")","v":""}]
[null,"Bảo hiểm","Hoạt động",null,null,{"$f":"IFERROR(SUM(Chi_phí[[#This Row],[Ngân sách]]-Chi_phí[[#This Row],[Thực tế]]), \"\")","v":0},{"$f":"IFERROR(SUM(Chi #REF!/Chi #REF!),\"\")","v":""}]
[null,"Lãi suất","Hoạt động",null,null,{"$f":"IFERROR(SUM(Chi_phí[[#This Row],[Ngân sách]]-Chi_phí[[#This Row],[Thực tế]]), \"\")","v":0},{"$f":"IFERROR(SUM(Chi #REF!/Chi #REF!),\"\")","v":""}]
[null,"Điện thoại","Hoạt động",null,null,{"$f":"IFERROR(SUM(Chi_phí[[#This Row],[Ngân sách]]-Chi_phí[[#This Row],[Thực tế]]), \"\")","v":0},{"$f":"IFERROR(SUM(Chi #REF!/Chi #REF!),\"\")","v":""}]
[null,"Bảo trì và sửa chữa","Hoạt động",null,null,{"$f":"IFERROR(SUM(Chi_phí[[#This Row],[Ngân sách]]-Chi_phí[[#This Row],[Thực tế]]), \"\")","v":0},{"$f":"IFERROR(SUM(Chi #REF!/Chi #REF!),\"\")","v":""}]
[null,"Chi phí pháp lý","Hoạt động",null,null,{"$f":"IFERROR(SUM(Chi_phí[[#This Row],[Ngân sách]]-Chi_phí[[#This Row],[Thực tế]]), \"\")","v":0},{"$f":"IFERROR(SUM(Chi #REF!/Chi #REF!),\"\")","v":""}]
[null,"Khấu hao","Hoạt động",null,null,{"$f":"IFERROR(SUM(Chi_phí[[#This Row],[Ngân sách]]-Chi_phí[[#This Row],[Thực tế]]), \"\")","v":0},{"$f":"IFERROR(SUM(Chi #REF!/Chi #REF!),\"\")","v":""}]
[null,"Vận chuyển","Hoạt động",null,null,{"$f":"IFERROR(SUM(Chi_phí[[#This Row],[Ngân sách]]-Chi_phí[[#This Row],[Thực tế]]), \"\")","v":0},{"$f":"IFERROR(SUM(Chi #REF!/Chi #REF!),\"\")","v":""}]
[null,"Bảo quản","Hoạt động",null,null,{"$f":"IFERROR(SUM(Chi_phí[[#This Row],[Ngân sách]]-Chi_phí[[#This Row],[Thực tế]]), \"\")","v":0},{"$f":"IFERROR(SUM(Chi #REF!/Chi #REF!),\"\")","v":""}]
[null,"Cửa hàng","Cá nhân",null,null,{"$f":"IFERROR(SUM(Chi_phí[[#This Row],[Ngân sách]]-Chi_phí[[#This Row],[Thực tế]]), \"\")","v":0},{"$f":"IFERROR(SUM(Chi #REF!/Chi #REF!),\"\")","v":""}]
[null,"Nhân viên bán hàng","Cá nhân",null,null,{"$f":"IFERROR(SUM(Chi_phí[[#This Row],[Ngân sách]]-Chi_phí[[#This Row],[Thực tế]]), \"\")","v":0},{"$f":"IFERROR(SUM(Chi #REF!/Chi #REF!),\"\")","v":""}]
[null,"Khác","Cá nhân",null,null,{"$f":"IFERROR(SUM(Chi_phí[[#This Row],[Ngân sách]]-Chi_phí[[#This Row],[Thực tế]]), \"\")","v":0},{"$f":"IFERROR(SUM(Chi #REF!/Chi #REF!),\"\")","v":""}]
[null,"Tổng chi phí",null,{"$f":"IFERROR(SUM(Chi_phí[Ngân sách]), \"\")","v":0},{"$f":"IFERROR(SUM(Chi_phí[Thực tế]), \"\")","v":0},{"$f":"IFERROR(SUM(Chi_phí[Chênh lệch ($)]), \"\")","v":0},{"$f":"IFERROR(SUM(Chi_phí[[#Totals],[Chênh lệch ($)]]/Chi_phí[[#Totals],[Ngân sách]]),\"\")","v":""}]

{"sheet":"Thể loại","index":1,"n_rows":4,"n_cols":2,"rows_kept":4}
[null,"Tra cứu thể loại"]
[null,"Thể loại"]
[null,"Hoạt động"]
[null,"Cá nhân"]